[Event "Late-Titled-Tuesday-Blitz-February-27-2024"]
[Site "Chess.com"]
[Date "2024.02.27"]
[Round "5"]
[White "wqws"]
[Black "Brahianzevich"]
[Result "1-0"]
[WhiteElo "2682"]
[BlackElo "2489"]
[TimeControl "180+1"]
[EndTime "14:57:12 PST"]
[Termination "wqws won on time"]

1. e4 {[%clk 0:03:00.1]} 1... c5 {[%clk 0:03:00.1]} 2. Nf3 {[%clk 0:03:00.4]}
2... d6 {[%clk 0:03:00.8]} 3. d4 {[%clk 0:03:00.9]} 3... cxd4 {[%clk 0:03:01.7]}
4. Nxd4 {[%clk 0:03:01.8]} 4... Nf6 {[%clk 0:03:02.4]} 5. Nc3 {[%clk 0:03:02.2]}
5... a6 {[%clk 0:03:03.1]} 6. Bg5 {[%clk 0:03:02.4]} 6... e6 {[%clk 0:03:03.1]}
7. f4 {[%clk 0:03:02.7]} 7... h6 {[%clk 0:03:03.8]} 8. Bh4 {[%clk 0:03:02.5]}
8... Qb6 {[%clk 0:03:04]} 9. a3 {[%clk 0:03:01.5]} 9... Be7 {[%clk 0:03:03.8]}
10. Bf2 {[%clk 0:03:01.5]} 10... Qc7 {[%clk 0:03:04.5]} 11. Qf3 {[%clk
0:03:01.6]} 11... Nbd7 {[%clk 0:03:04.9]} 12. O-O-O {[%clk 0:03:01.8]} 12... b5
{[%clk 0:03:05.2]} 13. Bd3 {[%clk 0:02:59.4]} 13... Bb7 {[%clk 0:03:04.1]} 14.
Kb1 {[%clk 0:02:58]} 14... Rc8 {[%clk 0:02:54.4]} 15. g4 {[%clk 0:02:56.9]}
15... g5 {[%clk 0:02:40]} 16. h4 {[%clk 0:02:56.2]} 16... gxf4 {[%clk
0:02:40.1]} 17. g5 {[%clk 0:02:56.5]} 17... Ne5 {[%clk 0:02:40.7]} 18. Qxf4
{[%clk 0:02:38.1]} 18... hxg5 {[%clk 0:02:24.6]} 19. hxg5 {[%clk 0:02:36.6]}
19... Rxh1 {[%clk 0:02:25.5]} 20. Rxh1 {[%clk 0:02:35.1]} 20... Nfd7 {[%clk
0:02:25.8]} 21. Nf3 {[%clk 0:01:36.9]} 21... Ng6 {[%clk 0:01:47.6]} 22. Qg3
{[%clk 0:01:27.2]} 22... Nde5 {[%clk 0:01:38.4]} 23. Nxe5 {[%clk 0:01:23.7]}
23... dxe5 {[%clk 0:01:39.1]} 24. Rh7 {[%clk 0:01:14.6]} 24... Bxa3 {[%clk
0:01:36.8]} 25. Be2 {[%clk 0:00:46.6]} 25... Bc5 {[%clk 0:01:26.8]} 26. Bh5
{[%clk 0:00:44.9]} 26... Nf4 {[%clk 0:00:20.3]} 27. Bxf7+ {[%clk 0:00:41.8]}
27... Qxf7 {[%clk 0:00:21.2]} 28. Rxf7 {[%clk 0:00:42.2]} 28... Kxf7 {[%clk
0:00:22.1]} 29. Bxc5 {[%clk 0:00:41.3]} 29... Rxc5 {[%clk 0:00:22]} 30. Qh4
{[%clk 0:00:41.6]} 30... Kg8 {[%clk 0:00:14.7]} 31. g6 {[%clk 0:00:39.3]} 31...
Nxg6 {[%clk 0:00:11.4]} 32. Qf6 {[%clk 0:00:39]} 32... Nf8 {[%clk 0:00:10.5]}
33. Qe7 {[%clk 0:00:36.3]} 33... Rxc3 {[%clk 0:00:05.1]} 34. Qxb7 {[%clk
0:00:30.4]} 34... Rc4 {[%clk 0:00:03.7]} 35. b3 {[%clk 0:00:29.6]} 35... Rd4
{[%clk 0:00:02.9]} 36. c3 {[%clk 0:00:29.6]} 36... Rd3 {[%clk 0:00:03.2]} 37.
Kc2 {[%clk 0:00:29.2]} 37... Re3 {[%clk 0:00:03.8]} 38. Kd2 {[%clk 0:00:29.7]}
38... Rf3 {[%clk 0:00:03.7]} 39. Qxa6 {[%clk 0:00:30]} 39... Rf2+ {[%clk
0:00:04.1]} 40. Ke3 {[%clk 0:00:29.6]} 40... Rh2 {[%clk 0:00:04.3]} 41. Qxb5
{[%clk 0:00:29.4]} 41... Rh3+ {[%clk 0:00:04.8]} 42. Kd2 {[%clk 0:00:29.5]}
42... Ng6 {[%clk 0:00:05]} 43. Qe8+ {[%clk 0:00:28.3]} 43... Kg7 {[%clk
0:00:05.1]} 44. Qxe6 {[%clk 0:00:28.3]} 44... Rh2+ {[%clk 0:00:05.4]} 45. Kc1
{[%clk 0:00:27.5]} 45... Rf2 {[%clk 0:00:04.8]} 46. b4 {[%clk 0:00:27.2]} 46...
Nf4 {[%clk 0:00:03.9]} 47. Qxe5+ {[%clk 0:00:27]} 47... Kg6 {[%clk 0:00:04.5]}
48. Qf5+ {[%clk 0:00:26.9]} 48... Kh6 {[%clk 0:00:04.1]} 49. Qf6+ {[%clk
0:00:23.7]} 49... Kh5 {[%clk 0:00:03.6]} 50. Qd8 {[%clk 0:00:22.4]} 50... Kg4
{[%clk 0:00:02.4]} 51. b5 {[%clk 0:00:22.4]} 51... Kf3 {[%clk 0:00:01.9]} 52. b6
{[%clk 0:00:23]} 52... Ke3 {[%clk 0:00:02.1]} 53. b7 {[%clk 0:00:23.4]} 53...
Nd3+ {[%clk 0:00:02.7]} 54. Qxd3+ {[%clk 0:00:23.3]} 54... Kxd3 {[%clk
0:00:03.6]} 55. b8=Q {[%clk 0:00:24.2]} 55... Kxe4 {[%clk 0:00:03.2]} 56. Qb4+
{[%clk 0:00:23.6]} 56... Kd3 {[%clk 0:00:02.6]} 57. Qd4+ {[%clk 0:00:24.5]}
57... Ke2 {[%clk 0:00:03.1]} 58. c4 {[%clk 0:00:25.1]} 58... Rf1+ {[%clk
0:00:01.2]} 59. Kc2 {[%clk 0:00:25.3]} 1-0

[Event "Late-Titled-Tuesday-Blitz-February-27-2024"]
[Site "Chess.com"]
[Date "2024.02.27"]
[Round "5"]
[White "temus_galaktionov"]
[Black "Goryachkina"]
[Result "1-0"]
[WhiteElo "2913"]
[BlackElo "2687"]
[TimeControl "180+1"]
[EndTime "14:57:15 PST"]
[Termination "temus_galaktionov won on time"]

1. d4 {[%clk 0:02:46.5]} 1... Nf6 {[%clk 0:02:59.4]} 2. Nf3 {[%clk 0:02:21.3]}
2... d5 {[%clk 0:02:57.6]} 3. c4 {[%clk 0:02:21.9]} 3... e6 {[%clk 0:02:57.4]}
4. Nc3 {[%clk 0:02:22]} 4... Nbd7 {[%clk 0:02:55]} 5. Bf4 {[%clk 0:02:19.7]}
5... dxc4 {[%clk 0:02:50]} 6. e3 {[%clk 0:02:19.8]} 6... Bd6 {[%clk 0:02:49.1]}
7. Bxd6 {[%clk 0:02:18.5]} 7... cxd6 {[%clk 0:02:49.1]} 8. Bxc4 {[%clk
0:02:19.2]} 8... Nb6 {[%clk 0:02:49.1]} 9. Bd3 {[%clk 0:02:18.9]} 9... Bd7
{[%clk 0:02:46.1]} 10. O-O {[%clk 0:02:18.5]} 10... O-O {[%clk 0:02:45.5]} 11.
e4 {[%clk 0:02:18.5]} 11... Bc6 {[%clk 0:02:29.9]} 12. Qe2 {[%clk 0:02:16.9]}
12... h6 {[%clk 0:02:24.4]} 13. Rac1 {[%clk 0:02:12.9]} 13... Rc8 {[%clk
0:02:21.4]} 14. h3 {[%clk 0:02:10.8]} 14... Re8 {[%clk 0:02:10.4]} 15. Rfd1
{[%clk 0:02:08.3]} 15... Qe7 {[%clk 0:01:56.2]} 16. e5 {[%clk 0:02:08.1]} 16...
dxe5 {[%clk 0:01:54.2]} 17. dxe5 {[%clk 0:02:07]} 17... Nfd7 {[%clk 0:01:21.4]}
18. Ne4 {[%clk 0:02:00.7]} 18... Bxe4 {[%clk 0:01:21]} 19. Qxe4 {[%clk
0:02:01.6]} 19... Nf8 {[%clk 0:01:20.7]} 20. Nd4 {[%clk 0:01:52.6]} 20... a6
{[%clk 0:01:16.4]} 21. Nb3 {[%clk 0:01:32.3]} 21... Nd5 {[%clk 0:01:07.9]} 22.
a3 {[%clk 0:01:30.7]} 22... Red8 {[%clk 0:01:05.1]} 23. Rxc8 {[%clk 0:01:25.5]}
23... Rxc8 {[%clk 0:01:05.2]} 24. Bc4 {[%clk 0:01:25]} 24... Nb6 {[%clk
0:01:04.1]} 25. Be2 {[%clk 0:01:23.1]} 25... Ng6 {[%clk 0:00:59.2]} 26. Bf3
{[%clk 0:01:19]} 26... Nd5 {[%clk 0:00:50]} 27. Qd4 {[%clk 0:01:18.9]} 27... Rd8
{[%clk 0:00:33.5]} 28. g3 {[%clk 0:01:08.5]} 28... Qc7 {[%clk 0:00:32.8]} 29.
Re1 {[%clk 0:01:02.7]} 29... Ndf4 {[%clk 0:00:29.3]} 30. Qe4 {[%clk 0:00:54.7]}
30... Nxh3+ {[%clk 0:00:29]} 31. Kg2 {[%clk 0:00:54.3]} 31... Ng5 {[%clk
0:00:29.1]} 32. Qxb7 {[%clk 0:00:54.3]} 32... Qc2 {[%clk 0:00:22]} 33. Re2
{[%clk 0:00:43.6]} 33... Qf5 {[%clk 0:00:22]} 34. Rd2 {[%clk 0:00:27.8]} 34...
Rxd2 {[%clk 0:00:15.5]} 35. Nxd2 {[%clk 0:00:28.7]} 35... Nxe5 {[%clk 0:00:14]}
36. Be2 {[%clk 0:00:20.6]} 36... a5 {[%clk 0:00:09]} 37. Qa8+ {[%clk 0:00:19.5]}
37... Kh7 {[%clk 0:00:08.9]} 38. Qxa5 {[%clk 0:00:20]} 38... Qh3+ {[%clk
0:00:05.2]} 39. Kg1 {[%clk 0:00:19.9]} 39... Ng4 {[%clk 0:00:05.4]} 40. Bxg4
{[%clk 0:00:18.6]} 40... Qxg4 {[%clk 0:00:05.8]} 41. Qc3 {[%clk 0:00:19.5]}
41... Qd1+ {[%clk 0:00:05.3]} 42. Kg2 {[%clk 0:00:19.5]} 42... Qe2 {[%clk
0:00:04.9]} 43. Qe3 {[%clk 0:00:19.3]} 43... Qd1 {[%clk 0:00:04.9]} 44. b4
{[%clk 0:00:19.2]} 44... f5 {[%clk 0:00:03.9]} 45. Nf3 {[%clk 0:00:18.7]} 45...
Ne4 {[%clk 0:00:03.7]} 46. b5 {[%clk 0:00:18.3]} 46... Qb1 {[%clk 0:00:03.6]}
47. b6 {[%clk 0:00:18.1]} 47... Qb5 {[%clk 0:00:03]} 48. Ng1 {[%clk 0:00:11.5]}
48... Qd5 {[%clk 0:00:03.1]} 49. Nf3 {[%clk 0:00:10.8]} 49... Ng5 {[%clk
0:00:02.5]} 50. a4 {[%clk 0:00:10.2]} 50... Qb7 {[%clk 0:00:01.9]} 51. a5 {[%clk
0:00:10.3]} 51... e5 {[%clk 0:00:02]} 52. Qe2 {[%clk 0:00:08.2]} 52... f4 {[%clk
0:00:01.4]} 53. gxf4 {[%clk 0:00:06]} 53... exf4 {[%clk 0:00:01.3]} 54. Qd3+
{[%clk 0:00:06.4]} 54... g6 {[%clk 0:00:01.3]} 55. Qc3 {[%clk 0:00:06.1]} 1-0

[Event "Late-Titled-Tuesday-Blitz-February-27-2024"]
[Site "Chess.com"]
[Date "2024.02.27"]
[Round "5"]
[White "marcodobrikov"]
[Black "Evgeny81"]
[Result "1/2-1/2"]
[WhiteElo "2594"]
[BlackElo "2785"]
[TimeControl "180+1"]
[EndTime "14:57:19 PST"]
[Termination "Game drawn by repetition"]

1. Nf3 {[%clk 0:02:44.3]} 1... Nf6 {[%clk 0:03:00]} 2. d4 {[%clk 0:02:41.1]}
2... c5 {[%clk 0:02:59.9]} 3. dxc5 {[%clk 0:02:40.8]} 3... g6 {[%clk 0:02:59.8]}
4. g3 {[%clk 0:02:36.5]} 4... Bg7 {[%clk 0:03:00]} 5. Bg2 {[%clk 0:02:37]} 5...
Na6 {[%clk 0:03:00.4]} 6. O-O {[%clk 0:02:30]} 6... Nxc5 {[%clk 0:03:00.2]} 7.
Be3 {[%clk 0:02:19.9]} 7... Ne6 {[%clk 0:02:58.2]} 8. c4 {[%clk 0:02:16.1]} 8...
Ng4 {[%clk 0:02:53.5]} 9. Bc1 {[%clk 0:02:16.7]} 9... h5 {[%clk 0:02:50.5]} 10.
Nc3 {[%clk 0:02:16.9]} 10... d6 {[%clk 0:02:48.7]} 11. Ng5 {[%clk 0:02:06.3]}
11... h4 {[%clk 0:02:40]} 12. Nxe6 {[%clk 0:02:04.5]} 12... Bxe6 {[%clk
0:02:40.2]} 13. Bxb7 {[%clk 0:02:04.6]} 13... Nxh2 {[%clk 0:02:36.2]} 14. Kxh2
{[%clk 0:01:54.4]} 14... hxg3+ {[%clk 0:02:35.8]} 15. Kxg3 {[%clk 0:01:55]}
15... Rb8 {[%clk 0:01:37.6]} 16. Bc6+ {[%clk 0:01:53.3]} 16... Bd7 {[%clk
0:01:34.8]} 17. Bxd7+ {[%clk 0:01:53.1]} 17... Qxd7 {[%clk 0:01:34.7]} 18. Rh1
{[%clk 0:01:49.8]} 18... Qf5 {[%clk 0:01:32.8]} 19. Rxh8+ {[%clk 0:01:47.7]}
19... Bxh8 {[%clk 0:01:33.7]} 20. Qd3 {[%clk 0:01:45.3]} 20... Qh5 {[%clk
0:01:29.3]} 21. Qf3 {[%clk 0:01:36.6]} 21... Be5+ {[%clk 0:01:26.5]} 22. Kg2
{[%clk 0:01:35.5]} 22... Qh2+ {[%clk 0:01:26]} 23. Kf1 {[%clk 0:01:35.8]} 23...
Rc8 {[%clk 0:01:21.9]} 24. e3 {[%clk 0:00:41.2]} 24... Rxc4 {[%clk 0:01:19.7]}
25. Qa8+ {[%clk 0:00:40.6]} 25... Kd7 {[%clk 0:01:19.2]} 26. Qb7+ {[%clk
0:00:39.1]} 26... Rc7 {[%clk 0:01:18.7]} 27. Qe4 {[%clk 0:00:34.7]} 27... f5
{[%clk 0:01:15.1]} 28. Qg2 {[%clk 0:00:33.5]} 28... Qh5 {[%clk 0:01:14.9]} 29.
Bd2 {[%clk 0:00:33.6]} 29... Rc4 {[%clk 0:01:08.2]} 30. Qb7+ {[%clk 0:00:31.5]}
30... Rc7 {[%clk 0:01:07.1]} 31. Qb5+ {[%clk 0:00:31.4]} 31... Ke6 {[%clk
0:01:07]} 32. Qd5+ {[%clk 0:00:31.1]} 32... Kd7 {[%clk 0:01:01.7]} 33. Rc1
{[%clk 0:00:28.4]} 33... Rc5 {[%clk 0:00:58.6]} 34. Qb7+ {[%clk 0:00:25.7]}
34... Ke6 {[%clk 0:00:58.5]} 35. Qg2 {[%clk 0:00:24.7]} 35... Kf7 {[%clk
0:00:56.8]} 36. Ne2 {[%clk 0:00:24]} 36... Rxc1+ {[%clk 0:00:34.7]} 37. Bxc1
{[%clk 0:00:24.9]} 37... Qh4 {[%clk 0:00:31]} 38. b3 {[%clk 0:00:20]} 38... Qb4
{[%clk 0:00:29.2]} 39. Qd5+ {[%clk 0:00:19.3]} 39... e6 {[%clk 0:00:26.9]} 40.
Qd2 {[%clk 0:00:15.3]} 40... Qe4 {[%clk 0:00:26]} 41. Ng1 {[%clk 0:00:09.9]}
41... Qh1 {[%clk 0:00:21.2]} 42. f3 {[%clk 0:00:05.7]} 42... Qh4 {[%clk
0:00:15.2]} 43. Qf2 {[%clk 0:00:05.3]} 43... Qb4 {[%clk 0:00:14.7]} 44. Qd2
{[%clk 0:00:04.8]} 44... Qb5+ {[%clk 0:00:14.1]} 45. Kf2 {[%clk 0:00:04.4]}
45... Qc6 {[%clk 0:00:14.4]} 46. Bb2 {[%clk 0:00:04]} 46... Qa6 {[%clk 0:00:11]}
47. Bxe5 {[%clk 0:00:03]} 47... dxe5 {[%clk 0:00:11.9]} 48. Ne2 {[%clk
0:00:03.4]} 48... Qb6 {[%clk 0:00:08.5]} 49. f4 {[%clk 0:00:03]} 49... exf4
{[%clk 0:00:07.4]} 50. Qd7+ {[%clk 0:00:03.1]} 50... Kf6 {[%clk 0:00:07.2]} 51.
Nxf4 {[%clk 0:00:03]} 51... Qa6 {[%clk 0:00:07.3]} 52. Qd4+ {[%clk 0:00:01.9]}
52... e5 {[%clk 0:00:06.9]} 53. Qb2 {[%clk 0:00:02.6]} 53... Qc6 {[%clk
0:00:05.6]} 54. Ne2 {[%clk 0:00:03.3]} 54... Qe4 {[%clk 0:00:05.7]} 55. Qd2
{[%clk 0:00:03.6]} 55... Qh4+ {[%clk 0:00:05.8]} 56. Kf1 {[%clk 0:00:03.3]}
56... Qh3+ {[%clk 0:00:05.9]} 57. Ke1 {[%clk 0:00:02.9]} 57... Qh1+ {[%clk
0:00:06.2]} 58. Kf2 {[%clk 0:00:03.4]} 58... Qh4+ {[%clk 0:00:06.8]} 59. Kg1
{[%clk 0:00:01.7]} 59... Qg4+ {[%clk 0:00:06.2]} 60. Kf1 {[%clk 0:00:02.6]}
60... Qh3+ {[%clk 0:00:05.3]} 61. Kf2 {[%clk 0:00:02.6]} 61... Qh4+ {[%clk
0:00:05]} 1/2-1/2

[Event "Late-Titled-Tuesday-Blitz-February-27-2024"]
[Site "Chess.com"]
[Date "2024.02.27"]
[Round "5"]
[White "GHANDEEVAM2003"]
[Black "Hikaru"]
[Result "0-1"]
[WhiteElo "3046"]
[BlackElo "3238"]
[TimeControl "180+1"]
[EndTime "14:57:26 PST"]
[Termination "Hikaru won by checkmate"]

1. c4 {[%clk 0:02:55.4]} 1... e5 {[%clk 0:02:57]} 2. d3 {[%clk 0:02:54.3]} 2...
Nf6 {[%clk 0:02:47.7]} 3. Nf3 {[%clk 0:02:53.8]} 3... c6 {[%clk 0:02:44.8]} 4.
Nc3 {[%clk 0:02:45.9]} 4... Qc7 {[%clk 0:02:40.9]} 5. g3 {[%clk 0:02:38.1]} 5...
Bc5 {[%clk 0:02:36.8]} 6. Bg5 {[%clk 0:02:34.8]} 6... d6 {[%clk 0:02:34.7]} 7.
Bxf6 {[%clk 0:02:34.1]} 7... gxf6 {[%clk 0:02:35.6]} 8. a3 {[%clk 0:02:30.7]}
8... Be6 {[%clk 0:02:29.8]} 9. Bg2 {[%clk 0:02:21.7]} 9... Nd7 {[%clk
0:02:28.3]} 10. O-O {[%clk 0:02:20.8]} 10... a6 {[%clk 0:02:27.1]} 11. Rc1
{[%clk 0:02:11.3]} 11... Ba7 {[%clk 0:02:23.9]} 12. b3 {[%clk 0:02:07.4]} 12...
f5 {[%clk 0:02:10.4]} 13. d4 {[%clk 0:02:07.6]} 13... Nf6 {[%clk 0:02:01.5]} 14.
e3 {[%clk 0:01:54]} 14... O-O-O {[%clk 0:01:50.4]} 15. Nh4 {[%clk 0:01:37.5]}
15... Kb8 {[%clk 0:01:46.8]} 16. Nd5 {[%clk 0:01:35.8]} 16... cxd5 {[%clk
0:01:33.8]} 17. cxd5 {[%clk 0:01:36.7]} 17... Qe7 {[%clk 0:01:27]} 18. dxe6
{[%clk 0:01:36.4]} 18... fxe6 {[%clk 0:01:27.9]} 19. d5 {[%clk 0:01:27.5]} 19...
f4 {[%clk 0:01:06.7]} 20. exf4 {[%clk 0:00:58]} 20... e4 {[%clk 0:01:06.9]} 21.
dxe6 {[%clk 0:00:54.4]} 21... Qxe6 {[%clk 0:01:07.8]} 22. Qe2 {[%clk 0:00:48.5]}
22... d5 {[%clk 0:01:06.4]} 23. Nf3 {[%clk 0:00:47.1]} 23... h5 {[%clk 0:01:01]}
24. Ng5 {[%clk 0:00:43]} 24... Qe7 {[%clk 0:00:59.4]} 25. h4 {[%clk 0:00:40]}
25... Rhe8 {[%clk 0:00:58.2]} 26. Qb2 {[%clk 0:00:26.1]} 26... e3 {[%clk
0:00:36.7]} 27. Bf3 {[%clk 0:00:26.3]} 27... exf2+ {[%clk 0:00:32.7]} 28. Kg2
{[%clk 0:00:27]} 28... Ng4 {[%clk 0:00:33.4]} 29. Bxg4 {[%clk 0:00:24.4]} 29...
hxg4 {[%clk 0:00:34.3]} 30. Qe5+ {[%clk 0:00:23.6]} 30... Qxe5 {[%clk 0:00:32]}
31. fxe5 {[%clk 0:00:24.5]} 31... Be3 {[%clk 0:00:32.5]} 32. Rcd1 {[%clk
0:00:19.3]} 32... d4 {[%clk 0:00:32.8]} 33. e6 {[%clk 0:00:19.3]} 33... Rd5
{[%clk 0:00:27.9]} 34. Ne4 {[%clk 0:00:10]} 34... Rxe6 {[%clk 0:00:25.8]} 35.
Nxf2 {[%clk 0:00:10.9]} 35... Bxf2 {[%clk 0:00:20.1]} 36. Rxf2 {[%clk
0:00:11.8]} 36... Re3 {[%clk 0:00:20.6]} 37. Rfd2 {[%clk 0:00:10.8]} 37... d3
{[%clk 0:00:17.3]} 38. b4 {[%clk 0:00:10.4]} 38... Kc7 {[%clk 0:00:16.9]} 39. h5
{[%clk 0:00:10.1]} 39... Rxh5 {[%clk 0:00:16.3]} 40. Rxd3 {[%clk 0:00:10.3]}
40... Re2+ {[%clk 0:00:17]} 41. Kf1 {[%clk 0:00:08.3]} 41... Rhh2 {[%clk
0:00:17.2]} 42. Rc3+ {[%clk 0:00:06.3]} 42... Kb6 {[%clk 0:00:16.6]} 43. Rd6+
{[%clk 0:00:05.7]} 43... Ka7 {[%clk 0:00:17.3]} 44. Rcd3 {[%clk 0:00:02.1]}
44... Ref2+ {[%clk 0:00:13.8]} 45. Kg1 {[%clk 0:00:02.6]} 45... Rhg2+ {[%clk
0:00:14.2]} 46. Kh1 {[%clk 0:00:03]} 46... Ra2 {[%clk 0:00:15.1]} 47. b5 {[%clk
0:00:02.6]} 47... Rgb2 {[%clk 0:00:14.2]} 48. b6+ {[%clk 0:00:02.6]} 48... Rxb6
{[%clk 0:00:14.6]} 49. Rxb6 {[%clk 0:00:03.5]} 49... Kxb6 {[%clk 0:00:15.5]} 50.
Rb3+ {[%clk 0:00:03.2]} 50... Kc6 {[%clk 0:00:15.8]} 51. Kg1 {[%clk 0:00:03.4]}
51... b5 {[%clk 0:00:15.9]} 52. Kf1 {[%clk 0:00:02.7]} 52... a5 {[%clk
0:00:16.5]} 53. Re3 {[%clk 0:00:03.4]} 53... Kc5 {[%clk 0:00:15.4]} 54. Ke1
{[%clk 0:00:02.9]} 54... b4 {[%clk 0:00:12.4]} 55. axb4+ {[%clk 0:00:03.8]}
55... axb4 {[%clk 0:00:12.8]} 56. Kd1 {[%clk 0:00:03.9]} 56... Rg2 {[%clk
0:00:12.9]} 57. Kc1 {[%clk 0:00:02.8]} 57... Kc4 {[%clk 0:00:10]} 58. Re4+
{[%clk 0:00:02.5]} 58... Kc3 {[%clk 0:00:09.7]} 59. Re3+ {[%clk 0:00:03.2]}
59... Kd4 {[%clk 0:00:10.4]} 60. Rb3 {[%clk 0:00:03.8]} 60... Kc4 {[%clk
0:00:10.9]} 61. Re3 {[%clk 0:00:04.5]} 61... b3 {[%clk 0:00:11.8]} 62. Re4+
{[%clk 0:00:03.7]} 62... Kd3 {[%clk 0:00:12.4]} 63. Rxg4 {[%clk 0:00:03.9]}
63... Kc3 {[%clk 0:00:12.9]} 64. Rg8 {[%clk 0:00:03.1]} 64... Rg1# {[%clk
0:00:09.1]} 0-1

[Event "Late-Titled-Tuesday-Blitz-February-27-2024"]
[Site "Chess.com"]
[Date "2024.02.27"]
[Round "5"]
[White "GodzillaChessYoutube"]
[Black "Romadk"]
[Result "1-0"]
[WhiteElo "2649"]
[BlackElo "2486"]
[TimeControl "180+1"]
[EndTime "14:57:26 PST"]
[Termination "GodzillaChessYoutube won by resignation"]

1. d4 {[%clk 0:03:00.9]} 1... Nf6 {[%clk 0:03:00.1]} 2. Bf4 {[%clk 0:03:00.7]}
2... d5 {[%clk 0:03:00.1]} 3. e3 {[%clk 0:03:00.9]} 3... c5 {[%clk 0:03:00.5]}
4. Nf3 {[%clk 0:02:59.1]} 4... Nc6 {[%clk 0:03:00.7]} 5. Bb5 {[%clk 0:02:57.5]}
5... Qb6 {[%clk 0:02:54.9]} 6. Nc3 {[%clk 0:02:47.2]} 6... Bg4 {[%clk
0:02:46.4]} 7. dxc5 {[%clk 0:02:33.6]} 7... Qxc5 {[%clk 0:02:43.3]} 8. Qd4
{[%clk 0:02:34]} 8... Qxd4 {[%clk 0:02:38.1]} 9. Nxd4 {[%clk 0:02:32.3]} 9...
Bd7 {[%clk 0:02:36.9]} 10. Nxc6 {[%clk 0:02:24.3]} 10... bxc6 {[%clk 0:02:35.5]}
11. Ba6 {[%clk 0:02:23.3]} 11... Bc8 {[%clk 0:02:33.8]} 12. Be2 {[%clk
0:02:16.6]} 12... e6 {[%clk 0:02:25.4]} 13. a3 {[%clk 0:02:11]} 13... Nd7 {[%clk
0:02:18.5]} 14. Bg3 {[%clk 0:02:03.8]} 14... a5 {[%clk 0:02:17.1]} 15. O-O-O
{[%clk 0:01:58.7]} 15... Ba6 {[%clk 0:02:16.2]} 16. Bxa6 {[%clk 0:01:58.6]}
16... Rxa6 {[%clk 0:02:17.1]} 17. e4 {[%clk 0:01:58.8]} 17... g6 {[%clk
0:02:06.9]} 18. exd5 {[%clk 0:01:58]} 18... cxd5 {[%clk 0:02:07.4]} 19. Nb5
{[%clk 0:01:57]} 19... Bh6+ {[%clk 0:02:07.5]} 20. Kb1 {[%clk 0:01:54.9]} 20...
O-O {[%clk 0:02:07.6]} 21. a4 {[%clk 0:01:47.1]} 21... Rc8 {[%clk 0:01:55.1]}
22. b3 {[%clk 0:01:40.8]} 22... Nc5 {[%clk 0:01:46.4]} 23. f3 {[%clk 0:01:35.6]}
23... Bg7 {[%clk 0:01:41.3]} 24. Bd6 {[%clk 0:01:06.1]} 24... Nb7 {[%clk
0:01:14.9]} 25. Ba3 {[%clk 0:01:04.3]} 25... Nd8 {[%clk 0:01:13.6]} 26. f4
{[%clk 0:00:50.6]} 26... Nc6 {[%clk 0:01:11.4]} 27. Rhe1 {[%clk 0:00:44]} 27...
Na7 {[%clk 0:01:02.2]} 28. Nd4 {[%clk 0:00:36.1]} 28... Nc6 {[%clk 0:00:58.4]}
29. Nf3 {[%clk 0:00:36.2]} 29... Bc3 {[%clk 0:00:42.2]} 30. Re2 {[%clk
0:00:36.1]} 30... Nb4 {[%clk 0:00:39.2]} 31. Ne5 {[%clk 0:00:34]} 31... f6
{[%clk 0:00:30.5]} 32. Nd3 {[%clk 0:00:33.7]} 32... Nxd3 {[%clk 0:00:26.6]} 33.
Rxd3 {[%clk 0:00:34.6]} 33... Rac6 {[%clk 0:00:23.9]} 34. Rde3 {[%clk
0:00:29.2]} 34... Kf7 {[%clk 0:00:24]} 35. Rh3 {[%clk 0:00:28.6]} 35... h5
{[%clk 0:00:22.8]} 36. Rd3 {[%clk 0:00:28.6]} 36... R8c7 {[%clk 0:00:13.1]} 37.
h3 {[%clk 0:00:28.3]} 37... Rc8 {[%clk 0:00:12.3]} 38. Bc1 {[%clk 0:00:28.2]}
38... Bb4 {[%clk 0:00:11]} 39. Bb2 {[%clk 0:00:26.5]} 39... Bc3 {[%clk 0:00:10]}
40. Bc1 {[%clk 0:00:26.8]} 40... Bb4 {[%clk 0:00:10]} 41. Rde3 {[%clk
0:00:27.4]} 41... Bc3 {[%clk 0:00:09.4]} 42. Ba3 {[%clk 0:00:27.5]} 42... Bb4
{[%clk 0:00:09.7]} 43. Bb2 {[%clk 0:00:28.1]} 43... Bc3 {[%clk 0:00:10.1]} 44.
Bxc3 {[%clk 0:00:28.2]} 44... Rxc3 {[%clk 0:00:11]} 45. Rxe6 {[%clk 0:00:28.5]}
45... R8c7 {[%clk 0:00:04.5]} 46. Rd6 {[%clk 0:00:26.5]} 46... R3c5 {[%clk
0:00:02.1]} 47. Rd2 {[%clk 0:00:25.9]} 47... g5 {[%clk 0:00:02.4]} 48. fxg5
{[%clk 0:00:25.6]} 48... fxg5 {[%clk 0:00:02.6]} 49. R6xd5 {[%clk 0:00:26]}
49... Rxd5 {[%clk 0:00:02.5]} 50. Rxd5 {[%clk 0:00:26.6]} 50... Kg6 {[%clk
0:00:03.4]} 51. Rxa5 {[%clk 0:00:24.8]} 51... Re7 {[%clk 0:00:04.1]} 52. b4
{[%clk 0:00:20.4]} 52... Re1+ {[%clk 0:00:04.2]} 53. Kb2 {[%clk 0:00:20.1]}
53... Re2 {[%clk 0:00:05.1]} 54. g4 {[%clk 0:00:20.3]} 54... Rg2 {[%clk
0:00:05.8]} 55. gxh5+ {[%clk 0:00:20.1]} 55... Kxh5 {[%clk 0:00:06.7]} 56. Rc5
{[%clk 0:00:19.9]} 56... Rg3 {[%clk 0:00:06.8]} 57. a5 {[%clk 0:00:20.3]} 57...
Rxh3 {[%clk 0:00:07.1]} 58. a6 {[%clk 0:00:21]} 58... Re3 {[%clk 0:00:04.1]} 59.
a7 {[%clk 0:00:20.5]} 59... Re8 {[%clk 0:00:05]} 60. b5 {[%clk 0:00:20.7]} 60...
Kh4 {[%clk 0:00:03.8]} 61. b6 {[%clk 0:00:20.8]} 61... g4 {[%clk 0:00:04.5]} 62.
b7 {[%clk 0:00:21.1]} 62... g3 {[%clk 0:00:05.4]} 63. b8=Q {[%clk 0:00:21]}
63... g2 {[%clk 0:00:06]} 64. Rc4+ {[%clk 0:00:19.5]} 64... Kh3 {[%clk
0:00:05.8]} 65. Rc3+ {[%clk 0:00:19.7]} 65... Re3 {[%clk 0:00:03.9]} 66. Rxe3+
{[%clk 0:00:19.2]} 66... Kg4 {[%clk 0:00:04.8]} 67. Qg3+ {[%clk 0:00:19]} 67...
Kf5 {[%clk 0:00:03.6]} 68. Re5+ {[%clk 0:00:19.7]} 1-0